Cogmind - Beta 14 *** ADVENTURER MODE // 2024.10.23 @ 22:49:54 Player: Destravous Result: Destroyed by ED-86Z(R) with Subdweller Laser Performance ------------- Evolutions (0) 0 Regions Visited (2) 400 Robots Destroyed (15) 75 Value Destroyed (477) 477 Prototype IDs (0) 0 Alien Tech Used (0) 0 Bonus (0) 0 TOTAL SCORE: 952 Bonus ------- None Cogmind --------- Core Integrity 0/250 Matter 150/300 Energy 130/170 System Corruption 0% Temperature Cool (56) Movement Treading (160) Location -10/Subcaves Parts ------- > --- POWER (1) -------- Makeshift Power Source > --- PROPULSION (2) --- Spiked Treads Spiked Treads > --- UTILITY (2) ------ Large Storage Unit Seismic Detector > --- WEAPON (2) ------- Subdweller Beam Cannon Battle Cannon > --- INVENTORY (15) --- Light Treads Flight Unit Structural Scanner Peak State ------------ > --- POWER ------------ Makeshift Power Source > --- PROPULSION ------- Spiked Treads Spiked Treads > --- UTILITY ---------- Large Storage Unit Seismic Detector > --- WEAPON ----------- Subdweller Beam Cannon Battle Cannon > --- INVENTORY -------- Light Treads Flight Unit Structural Scanner [Rating: 14] Favorites ----------- Power Ion Engine Engine Ion Engine Propulsion Aluminum Leg Treads Light Treads Leg Aluminum Leg Flight Unit Flight Unit Utility Small Storage Unit Device Structural Scanner Storage Small Storage Unit Weapon Light Assault Rifle Energy Gun EM Pulse Gun Energy Cannon Subdweller Beam Cannon Ballistic Gun Light Assault Rifle Ballistic Cannon Battle Cannon Special Weapon Mining Laser Build | -11 -10 -10 ------- Run | Yrd Mat Sub Slots Evolved . | . . . Power . | . . . Propulsion . | . . . Utility . | . . . Weapon . | . . . Parts Attached 29 | . 14 15 Power 4 | . 1 3 Engine 4 | . 1 3 Core . | . . . Reactor . | . . . Propulsion 9 | . 3 6 Treads 4 | . . 4 Leg 3 | . 3 . Wheel . | . . . Hover . | . . . Flight 2 | . . 2 Utility 6 | . 4 2 Device 3 | . 2 1 Storage 3 | . 2 1 Processor . | . . . Hackware . | . . . Protection . | . . . Artifact . | . . . Weapon 10 | . 6 4 Energy Gun . | . . . Energy Cannon 1 | . . 1 Ballistic Gun 4 | . 3 1 Ballistic Cannon 1 | . . 1 Launcher . | . . . Special Weapon 4 | . 3 1 Impact Weapon . | . . . Slashing Weapon . | . . . Piercing Weapon . | . . . Special Melee Weapon . | . . . Unidentified Prototypes . | . . . Parts Lost 8 | . 1 7 Power 2 | . . 2 Propulsion 2 | . . 2 Utility . | . . . Weapon 4 | . 1 3 Highest Loss Streak 6 | . 1 6 To Critical Strikes 1 | . . 1 Average Slot Usage (%) 94 | . 98 80 Engine 12 | . 14 8 Treads 2 | . . 12 Leg 23 | . 28 7 Device 13 | . 13 14 Storage 13 | . 14 10 Energy Gun 8 | . 10 . Ballistic Gun 11 | . 11 12 Special Weapon 4 | . 5 3 Peak Build Rating 14 | 6 7 14 Average Rating 6 | 6 6 6 On Entrance 6 | 6 6 7 Naked Turns . | . . . Heaviest Build 36 | 11 14 36 Greatest Support 40 | 20 20 40 Greatest Overweight (x) 1 | . . 1 Average Overweight (x) . | . . . Largest Inventory Capacity 15 | 8 15 15 Average Capacity 8 | 8 8 7 Most Carried 8 | 5 8 8 Average Carried 6 | 3 5 6 Final Capacity 15 | 8 8 15 Final Carried 8 | 2 8 3 Class Distribution -------------------- 50% | Scavenger-Mutant 49% | Mutant Dominant Class ---------------- Scavenger-Mutant | -10/Materials Mutant | -10/Subcaves Resources | -11 -10 -10 ----------- Run | Yrd Mat Sub Matter Collected 469 | 200 181 88 Remotely . | . . . Salvage Created 548 | . 464 84 Parts 38 | . 33 5 Haulers Intercepted . | . . . Recyclers Shooed . | . . . Parts Field Recycled . | . . . Retrieved Matter . | . . . Parts Self-Destructed 2 | . . 2 Prevented . | . . . Kills | -11 -10 -10 ------- Run | Yrd Mat Sub Combat Hostiles Destroyed 14 | . 11 3 Guns 13 | . 11 2 Cannons 1 | . . 1 Classes Destroyed 4 | . 3 1 Builder 1 | . 1 . Swarmer 2 | . 2 . Grunt 9 | . 9 . Subdweller 3 | . . 3 Best Kill Streak 3 | . 3 1 Combat Bots Only 3 | . 3 1 Max Kills in Single Turn 1 | . 1 1 Gunslinging . | . . . Exploded . | . . . Melee . | . . . Uniques/NPCs Destroyed . | . . . Combat | -11 -10 -10 -------- Run | Yrd Mat Sub Hostile Shots Fired 118 | . 66 52 Missed 27 | . 17 10 Damage Taken 1221 | . 427 794 Core 262 | . 100 162 Absorbed by Shields . | . . . Ignored by Resistances 350 | . 127 223 Core Remaining (%) 100 | 100 . . Volleys Fired 93 | . 57 36 Largest 2 | . 2 2 Hottest 120 | . 120 120 Shots Fired 144 | . 88 56 Gun 101 | . 72 29 Cannon 22 | . . 22 Launcher . | . . . Special 21 | . 16 5 Kinetic 92 | . 45 47 Thermal 25 | . 16 9 Explosive . | . . . Electromagnetic 27 | . 27 . Robot Hit Streak 30 | . 30 20 Robot Miss Streak 2 | . 2 2 Penetration Max . | . . . Secondary Targets 1 | . 1 . Max Gunslinging Chain 1 | . 1 . Shots Hit Robots 100 | . 54 46 Core Hits 33 | . 23 10 Critical Kills . | . . . Critical Parts Destroyed . | . . . Critical Strikes 2 | . 2 . Corrupt 2 | . 2 . Melee Attacks . | . . . Impact . | . . . Slashing . | . . . Piercing . | . . . Sneak Attacks . | . . . Combat Hostiles . | . . . Follow-up Attacks . | . . . Damage Inflicted 1137 | . 549 588 Guns 747 | . 549 198 Cannons 270 | . . 270 Explosions . | . . . Melee . | . . . Ramming . | . . . Kinetic 625 | . 239 386 Thermal 202 | . . 202 Explosive . | . . . Electromagnetic 310 | . 310 . Impact . | . . . Slashing . | . . . Piercing . | . . . Highest Corruption . | . . . Average Corruption . | . . . Corruption Purged . | . . . Corruption Blocked . | . . . Overload Shots . | . . . Overflow Damage . | . . . Projectiles . | . . . Explosions . | . . . Melee . | . . . Knockbacks 3 | . . 3 Impact . | . . . Kinetic 3 | . . 3 Secondary . | . . . Self-Inflicted Damage . | . . . Shots . | . . . Rammed . | . . . Targets Rammed . | . . . Kicked . | . . . Crushed . | . . . Highest Temperature 214 | . 141 214 Average Temperature 32 | . 28 68 Received Heat Transfer 593 | . 240 353 Effects 1 | . . 1 Energy Bleed 1 | . . 1 Siege Activations . | . . . Robots Corrupted . | . . . Combat Hostiles . | . . . Parts Fried 1 | . 1 . Impact Corruptions . | . . . Robots Melted . | . . . Combat Hostiles . | . . . Parts Melted . | . . . Heat Transferred 361 | . . 361 Parts Sabotaged . | . . . Parts Stolen . | . . . Parts Stripped . | . . . Power Chain Reactions . | . . . Alert | -11 -10 -10 ------- Run | Yrd Mat Sub Peak Influence 191 | . 191 . Initial . | . . . Average 62 | . 63 . Maximum Alert Level . | . . . Low Security (%) 100 | 100 100 . Level 1 . | . . . Level 2 . | . . . Level 3 . | . . . Level 4 . | . . . Level 5 . | . . . High Security . | . . . Max Security . | . . . Squads Dispatched 4 | . 4 . Investigation 4 | . 4 . Extermination . | . . . Reinforcement . | . . . Assault . | . . . Garrison . | . . . Intercept . | . . . Searches Triggered . | . . . Construction Impeded . | . . . Haulers Reinforced . | . . . Active Scanning Responses . | . . . Cargo Convoy Interrupts . | . . . Stealth | -11 -10 -10 --------- Run | Yrd Mat Sub Distress Signals 1 | . 1 . Communications Jammed . | . . . Distress Signals . | . . . Times Spotted 25 | . 19 6 Peak Tracking Total 5 | . 5 2 Tactical Retreats 1 | . 1 . Traps | -11 -10 -10 ------- Run | Yrd Mat Sub Traps Triggered 3 | . 3 . Indirectly . | . . . Trap Hack Attempts . | . . . Triggered . | . . . Disarmed . | . . . Reprogrammed . | . . . Reused . | . . . Traps Extracted . | . . . Installed . | . . . Triggered . | . . . Machines | -11 -10 -10 ---------- Run | Yrd Mat Sub Machines Disabled . | . . . Max in Single Turn . | . . . Machines Repaired . | . . . Machines Dismantled . | . . . Machines Sabotaged . | . . . Overloaded Fab Kills . | . . . Hacking | -11 -10 -10 --------- Run | Yrd Mat Sub Machines Accessed 8 | . 8 . Terminals 7 | . 7 . Fabricators . | . . . Repair Stations . | . . . Recycling Units 1 | . 1 . Scanalyzers . | . . . Garrison Access . | . . . Total Hacks 24 | . 24 . Successful 12 | . 12 . Failed 12 | . 12 . Catastrophic 5 | . 5 . Database Lockouts . | . . . Manual 23 | . 23 . Terminals 23 | . 23 . Fabricators . | . . . Repair Stations . | . . . Recycling Units 1 | . 1 . Scanalyzers . | . . . Garrison Access . | . . . Terminal Hacks 4 | . 4 . Level Access Points 1 | . 1 . Recall Investigation 2 | . 2 . Registered Components 1 | . 1 . Fabricator Hacks . | . . . Repair Station Hacks . | . . . Recycling Unit Hacks 1 | . 1 . Retrieve Components 1 | . 1 . Scanalyzer . | . . . Garrison Access Hacks . | . . . Unauthorized Hacks 7 | . 7 . Terminals 7 | . 7 . Botnet 7 | . 7 . Fabricators . | . . . Repair Stations . | . . . Recycling Units . | . . . Scanalyzers . | . . . Garrison Access . | . . . Data Cores Recovered . | . . . Used . | . . . Hacking Detections 7 | . 7 . Full Trace Events 2 | . 2 . Feedback Events . | . . . Feedback Blocked . | . . . Robot Schematics Acquired . | . . . Robots Built . | . . . Authchips . | . . . Time . | . . . Total Robot Build Rating . | . . . Part Schematics Acquired . | . . . Parts Built . | . . . Authchips . | . . . Time . | . . . Total Part Build Rating . | . . . Parts Repaired . | . . . Time . | . . . Parts Recycled . | . . . Recycled Matter . | . . . Retrieved Matter . | . . . Retrieved Components 3 | . 3 . Parts Scanalyzed . | . . . Part Schematics Acquired . | . . . Parts Damaged . | . . . Bothacking | -11 -10 -10 ------------ Run | Yrd Mat Sub Used RIF Installer . | . . . Robots Hacked . | . . . Non-combat . | . . . Combat . | . . . Robot Hacks Applied . | . . . Relay Couplers Released . | . . . Fabnet Peak Effective % . | . . . Robots Rewired . | . . . Allies Hacked . | . . . Hacks Repelled . | . . . Allies | -11 -10 -10 -------- Run | Yrd Mat Sub Total Allies . | . . . Largest Group . | . . . Highest-Rated Group . | . . . Highest-Rated Ally . | . . . Total Orders . | . . . Ally Attacks . | . . . Total Damage . | . . . Kills . | . . . Allies Corrupted . | . . . Allies Melted . | . . . Intel | -11 -10 -10 ------- Run | Yrd Mat Sub Robot Analysis Total . | . . . Derelict Logs Recovered 1 | . . 1 Drone Launches . | . . . Drone Recoveries . | . . . Exploration | -11 -10 -10 ------------- Run | Yrd Mat Sub Turns Passed 1281 | 3 1009 269 Spaces Moved 811 | 1 651 159 Core . | . . . Treads 34 | . . 34 Legs 690 | 1 651 38 Wheels . | . . . Hover . | . . . Flight 87 | . . 87 Fastest Speed 37 | 120 120 37 Average Speed 113 | 120 120 86 Slowest Speed 260 | 120 120 260 Overloaded Moves . | . . . Propulsion Burnouts . | . . . Robots Hopped . | . . . Cave-ins Triggered . | . . . Exploration Rate (%) 33 | 2 87 11 Regions Visited 2 Branch Regions 1 Pre-discovered Areas . | . . . Known Exits Taken . | . . . Unknown Exits Taken 2 | 1 1 . Scrap Searched . | . . . Spaces Dug 15 | . 15 . Terrain Destroyed 16 | . 16 . Melee . | . . . Projectile 16 | . 16 . AOE . | . . . Terrain Rammed . | . . . Walls Destroyed . | . . . Machines Disabled . | . . . Actions | -11 -10 -10 --------- Run | Yrd Mat Sub Total 998 | 4 765 229 Wait 42 | . 32 10 Move 809 | . 650 159 Hop . | . . . Pick Up 9 | . 5 4 Fast Attach 6 | . 4 2 Attach 9 | . 1 8 Detach 3 | . 2 1 Swap 14 | . 9 5 Drop 13 | 4 5 4 Fire 93 | . 57 36 Melee . | . . . Ram . | . . . Kick . | . . . Crush . | . . . Escape Stasis . | . . . Rewire . | . . . Trap . | . . . Miscellaneous . | . . . Route ------- -11/Scrapyard -10/Materials (discovered 5 exits: *Mat x3 / [*Min] / [*Sub]) -10/Subcaves History --------- Turn | Location | Event 4 | -11/Scrapyard | Discovered new exit (range 0) 4 | -11/Scrapyard | Entered Materials 269 | -10/Materials | Discovered new exit (range 15) 283 | -10/Materials | Identified exit to Materials 306 | -10/Materials | Build established: Mutant 725 | -10/Materials | Build established: Scavenger-Mutant 1001 | -10/Materials | Discovered new exit (range 7) 1013 | -10/Materials | Entered Subcaves 1018 | -10/Subcaves | Learned Materials interactive machine intel 1079 | -10/Subcaves | Core integrity fell below 50% 1124 | -10/Subcaves | A swath of the cavern ceiling suddenly collapsed 1226 | -10/Subcaves | Lost 6 parts (2p1n3w) 1233 | -10/Subcaves | Shifting Twisted Machinery released Spk. Treads 1238 | -10/Subcaves | Shifting Twisted Machinery released Spk. Treads 1239 | -10/Subcaves | Core integrity fell below 20% 1280 | -10/Subcaves | Ambushed by Subdweller buried in earth 1282 | -10/Subcaves | Destroyed by ED-86Z(R) with Subdweller Laser Last Messages --------------- 01215_ Acquired Battle Cannon. 01218_ Dropped Ion Engine. 01218_ Acquired Mak. Power Source. Spk. Treads falls loose from the Twisted Machinery. 01238_ Critical hit (Meltdown: +230). 01239_ Overheating: Energy bleed (-21). 01240_ G9-KQ6(R) knocked back. 01240_ 4N-FM7(O) collects matter. 01252_ G9-KQ6(R) destroyed. 01254_ Acquired Sub. Beam Cannon. 01258_ 4N-FM7(O) collects matter. 01258_ Acquired Spk. Treads. 01265_ 4N-FM7(O) puts together Sub. Machine Gun. 01266_ Acquired Spk. Treads. 01271_ 69-SOH(R) knocked back. 01279_ 69-SOH(R) affixes Scrap Shield Fragment to Scrap Shield. 01280_ 69-SOH(R) destroyed. 01281_ ED-86Z(R): "ARGHSUB!" Map ----- +----------------------------------------------------+ | ?????????????????????????????????????????????????? | | ?????????????????????????????????????????????????? | | ?????????????????????????????????????????????????? | | ?????????????????????????????????????????????????? | | ?????????????????????????????????????????????????? | | ?????????????????????????????????????????????????? | | ?????????????????????????????????????????????????? | | ?????????????????????????????????????????????????? | | ?????????????????????????????????????????????????? | | ?????????????????????????????????????????????????? | | ?????????????????????????????????????????????????? | | ?????????????????????????????????????????????????? | | ?????????????????????????????????????????????????? | | ?????????????????????????????????????????????????? | | ?????????????????????????????????????????????????? | | ?????????????????????????????????????????????????? | | ?????????????????????????????????????????????????? | | ?????????????????????????????????????????????????? | | ?????????????????????????????????????????????????? | | ?????????????????????????????????????????????????? | | ????????????????????##########???????????????????? | | ????????????????????# ;#???????????????????? | | ????????????????????# ;##??????????????????? | | ????????????????????# ; #??????????????????? | | ????????????????????##; ;# #???????????????? | | ????????????????????# @ "#?????????????? | | ????????????????????# """""?????????????? | | ????????????????????# % ;##"" "??????????????? | | ????????????????????##R & ;#????"??????????????? | | ?????????????????????# ## #???????????????????? | | ?????????????????????#####" "#???????????????????? | | ????????????????????????#"" "#???????????????????? | | ????????????????????????#" ##???????????????????? | | ????????????????????????## #???????????????????? | | ????????????????????????## ###????? ???????????? | | ???????????????????????## ##?? ???????????? | | ???????????????????????# #?# #??????????? | | ???????????????????????# ### #??????????? | | ???????????????????????##[ * ## #???????????? | | ????????????????????????# #???????????? | | ??????????????????????### #???????????? | | ??????????????????????# ####???????????? | | ??????????????????????# ##??????????????? | | ??????????????????????# ####???????????????? | | ??????????????????????# ###??????????????????? | | ??????????????????????# ##???????????????????? | | ?????????????????????## #???????????????????? | | ?????????????????????# ##???????????????????? | | ?????????????????????## ###????????????????????? | | ???????????????#??###?# ####???????????????????? | +----------------------------------------------------+ Best States ------------- Heat Dissipation 25 Energy Generation 15 Energy Capacity 250 Matter Stores 300 Matter Capacity 300 Sight Range 16 Terrain Scan Density 10 Resistance: KI 20 Resistance: TH 20 Resistance: EX 20 Resistance: EM 20 Resistance: I 20 Resistance: S 20 Resistance: P 20 Evasion (%) 62 Recoil Reduction 2 Offensive Hacking 10 Item Schematics ----------------- None Robot Schematics ------------------ None Fabricated ------------ Nothing Alien Tech Used ----------------- None Achievements -------------- None Challenges ------------ None Game ------ Seed RainbowGyrokineticPlating Manual? 0 Play Time 00:20:34 Cumulative 286.3 hours Start 2024.10.23 @ 22:30:25 End 2024.10.23 @ 22:49:54 Sessions 1 Manual Loads 0 Difficulty Adventurer Special Mode None Game No. 87 Rogue 81 Adventurer 6 Explorer 0 Win Type - Total 8 Types 7/0/0/0/0/1/0/0/0 Lore% 32 Gallery% 56 Achievement% 48 Wizard Run 0 Options --------- Layout 1 ASCII 0 Keyboard 0 Movement Mouse Keybinds 0 Fullscreen 2 Font 24/Smallcaps Map View 50x35 Zoom Use 0% Tactical HUD 1 Map Filters NONE Filters NONE Steam 1 RUN: 931d4b46-f39a-41dc-9b3e-59e3e9b1b0b3